Cogmind - Beta 11.1 @@@ ROGUE MODE // 2022.07.04 @ 16:37:30 Player: Demise Result: Destroyed by G-47 Trooper with Particle Gun Performance ------------- Evolutions (0) 0 Regions Visited (1) 200 Robots Destroyed (22) 110 Value Destroyed (382) 382 Prototype IDs (4) 80 Alien Tech Used (0) 0 Bonus (16) 16 TOTAL SCORE: 788 Bonus ------- High Alert Combat Kills 16 Cogmind --------- Core Integrity 0/250 Matter 250/300 Energy 100/100 System Corruption 0% Temperature Cool (9) Movement Core (50) Location -10/Materials Parts ------- > --- POWER (1) -------- (None) > --- PROPULSION (2) --- (None) > --- UTILITY (2) ------ Visual Processing Unit Hacking Suite > --- WEAPON (2) ------- Assault Rifle Light Assault Rifle > --- INVENTORY (5) ---- Wheel Wheel Huge Storage Unit Grenade Launcher Datajack Peak State ------------ > --- POWER ------------ (None) > --- PROPULSION ------- (None) > --- UTILITY ---------- Visual Processing Unit Hacking Suite > --- WEAPON ----------- Small Laser Small Laser > --- INVENTORY -------- Wheel Wheel Huge Storage Unit Grenade Launcher Datajack [Rating: 7] Favorites ----------- Power None Propulsion None Utility Hacking Suite Processor Visual Processing Unit Hackware Hacking Suite Weapon Light Assault Rifle Energy Gun Small Laser Ballistic Gun Light Assault Rifle Build | -11 -10 ------- Run | Scr Mat Slots Evolved . | . . Power . | . . Propulsion . | . . Utility . | . . Weapon . | . . Parts Attached 8 | 2 6 Power . | . . Engine . | . . Core . | . . Reactor . | . . Propulsion . | . . Treads . | . . Leg . | . . Wheel . | . . Hover . | . . Flight . | . . Utility 2 | . 2 Device . | . . Storage . | . . Processor 1 | . 1 Hackware 1 | . 1 Protection . | . . Artifact . | . . Weapon 6 | 2 4 Energy Gun 2 | . 2 Energy Cannon . | . . Ballistic Gun 4 | 2 2 Ballistic Cannon . | . . Launcher . | . . Special Weapon . | . . Impact Weapon . | . . Slashing Weapon . | . . Piercing Weapon . | . . Special Melee Weapon . | . . Unidentified Prototypes . | . . Parts Lost 2 | . 2 Power . | . . Propulsion . | . . Utility . | . . Weapon 2 | . 2 Highest Loss Streak 2 | . 2 To Critical Strikes . | . . Average Slot Usage (%) 41 | . 41 Processor 6 | . 6 Hackware 6 | . 6 Energy Gun 8 | . 8 Ballistic Gun 19 | . 19 Naked Turns . | . . Heaviest Build 3 | 2 3 Greatest Support 3 | 3 3 Greatest Overweight (x) . | . . Average Overweight (x) . | . . Largest Inventory Capacity 5 | 5 5 Average Capacity 5 | 5 5 Most Carried 5 | 5 5 Average Carried 4 | 3 4 Final Capacity 5 | 5 5 Final Carried 5 | 5 5 Class Distribution -------------------- 100% | Mutant Dominant Class ---------------- Mutant | -10/Materials Resources | -11 -10 ----------- Run | Scr Mat Matter Collected 373 | 232 141 Remotely . | . . Salvage Created 788 | 105 683 Parts 55 | 7 48 Haulers Intercepted 2 | . 2 Recyclers Shooed . | . . Parts Field Recycled . | . . Retrieved Matter . | . . Parts Self-Destructed . | . . Prevented . | . . Kills | -11 -10 ------- Run | Scr Mat Combat Hostiles Destroyed 11 | . 11 Guns 11 | . 11 Classes Destroyed 9 | 2 7 Worker 2 | . 2 Builder 2 | . 2 Tunneler 1 | 1 . Hauler 2 | . 2 Recycler 2 | 1 1 Operator 1 | . 1 Watcher 1 | . 1 Swarmer 3 | . 3 Grunt 8 | . 8 Best Kill Streak 9 | 2 9 Combat Bots Only 5 | . 5 Max Kills in Single Turn 1 | 1 1 Gunslinging . | . . Exploded . | . . Melee . | . . Uniques/NPCs Destroyed . | . . Combat | -11 -10 -------- Run | Scr Mat Damage Taken 597 | . 597 Core 253 | . 253 Absorbed by Shields . | . . Core Remaining (%) 100 | 100 . Volleys Fired 70 | 6 64 Largest 2 | 2 2 Hottest 80 | 40 80 Shots Fired 134 | 12 122 Gun 134 | 12 122 Cannon . | . . Launcher . | . . Special . | . . Kinetic 105 | 12 93 Thermal 29 | . 29 Explosive . | . . Electromagnetic . | . . Robot Hit Streak 17 | 3 17 Robot Miss Streak 3 | 2 3 Penetration Max . | . . Secondary Targets 1 | . 1 Max Gunslinging Chain 1 | . 1 Shots Hit Robots 89 | 8 81 Core Hits 43 | 4 39 Critical Kills . | . . Critical Parts Destroyed . | . . Critical Strikes . | . . Melee Attacks . | . . Impact . | . . Slashing . | . . Piercing . | . . Sneak Attacks . | . . Combat Hostiles . | . . Follow-up Attacks . | . . Damage Inflicted 908 | 62 846 Guns 908 | 62 846 Cannons . | . . Explosions . | . . Melee . | . . Ramming . | . . Kinetic 650 | 62 588 Thermal 258 | . 258 Explosive . | . . Electromagnetic . | . . Impact . | . . Slashing . | . . Piercing . | . . Highest Corruption . | . . Average Corruption . | . . Corruption Purged . | . . Corruption Blocked . | . . Overload Shots . | . . Overflow Damage . | . . Projectiles . | . . Explosions . | . . Melee . | . . Knockbacks . | . . Impact . | . . Kinetic . | . . Secondary . | . . Self-Inflicted Damage . | . . Shots . | . . Rammed . | . . Targets Rammed . | . . Kicked . | . . Crushed . | . . Highest Temperature 32 | . 32 Average Temperature 5 | . 5 Received Heat Transfer 288 | . 288 Siege Activations . | . . Robots Corrupted . | . . Combat Hostiles . | . . Parts Fried . | . . Impact Corruptions . | . . Robots Melted . | . . Combat Hostiles . | . . Parts Melted . | . . Heat Transferred 550 | . 550 Parts Sabotaged . | . . Parts Stolen . | . . Parts Stripped . | . . Power Chain Reactions . | . . Missiles Intercepted . | . . Alert | -11 -10 ------- Run | Scr Mat Peak Influence 429 | 10 429 Initial 6 | . 6 Average 206 | 3 226 Maximum Alert Level 2 | . 2 Low Security (%) 45 | 100 40 Level 1 41 | . 46 Level 2 12 | . 13 Level 3 . | . . Level 4 . | . . Level 5 . | . . High Security . | . . Max Security . | . . Squads Dispatched 2 | . 2 Investigation 2 | . 2 Extermination . | . . Reinforcement . | . . Assault . | . . Garrison . | . . Intercept . | . . Searches Triggered . | . . Construction Impeded . | . . Haulers Reinforced . | . . Active Scanning Responses . | . . Cargo Convoy Interrupts . | . . Stealth | -11 -10 --------- Run | Scr Mat Distress Signals 1 | . 1 Communications Jammed . | . . Distress Signals . | . . Times Spotted 21 | . 21 Peak Tracking Total 4 | . 4 Tactical Retreats . | . . Traps | -11 -10 ------- Run | Scr Mat Traps Triggered . | . . Indirectly . | . . Trap Hack Attempts . | . . Triggered . | . . Disarmed . | . . Reprogrammed . | . . Reused . | . . Traps Extracted . | . . Installed . | . . Triggered . | . . Machines | -11 -10 ---------- Run | Scr Mat Machines Disabled . | . . Max in Single Turn . | . . Machines Sabotaged . | . . Garrisons Compromised . | . . Overloaded Fab Kills . | . . Hacking | -11 -10 --------- Run | Scr Mat Machines Accessed 8 | . 8 Terminals 7 | . 7 Fabricators . | . . Repair Stations . | . . Recycling Units 1 | . 1 Scanalyzers . | . . Garrison Access . | . . Total Hacks 30 | . 30 Successful 20 | . 20 Failed 9 | . 9 Catastrophic . | . . Database Lockouts 1 | . 1 Manual 24 | . 24 Terminals 28 | . 28 Fabricators . | . . Repair Stations . | . . Recycling Units 2 | . 2 Scanalyzers . | . . Garrison Access . | . . Terminal Hacks 10 | . 10 Robot Analysis 5 | . 5 Prototype ID Bank 2 | . 2 Terminal Index 1 | . 1 Registered Components 1 | . 1 Registered Prototypes 1 | . 1 Fabricator Hacks . | . . Repair Station Hacks . | . . Recycling Unit Hacks 1 | . 1 Retrieve Components 1 | . 1 Scanalyzer . | . . Garrison Access Hacks . | . . Unauthorized Hacks 9 | . 9 Terminals 8 | . 8 Assimilate 2 | . 2 Botnet 5 | . 5 Operators 1 | . 1 Fabricators . | . . Repair Stations . | . . Recycling Units 1 | . 1 Tunnel 1 | . 1 Scanalyzers . | . . Garrison Access . | . . Data Cores Recovered . | . . Used . | . . Hacking Detections 7 | . 7 Full Trace Events 2 | . 2 Feedback Events . | . . Feedback Blocked . | . . Robot Schematics Acquired . | . . Robots Built . | . . Authchips . | . . Time . | . . Total Robot Build Rating . | . . Part Schematics Acquired . | . . Parts Built . | . . Authchips . | . . Time . | . . Total Part Build Rating . | . . Parts Repaired . | . . Time . | . . Parts Recycled . | . . Recycled Matter . | . . Retrieved Matter . | . . Retrieved Components 2 | . 2 Parts Scanalyzed . | . . Part Schematics Acquired . | . . Parts Damaged . | . . Bothacking | -11 -10 ------------ Run | Scr Mat Used RIF Installer . | . . Robots Hacked . | . . Non-combat . | . . Combat . | . . Robot Hacks Applied . | . . Relay Couplers Released . | . . Fabnet Peak Effective % . | . . Robots Rewired . | . . Allies Hacked . | . . Hacks Repelled . | . . Allies | -11 -10 -------- Run | Scr Mat Total Allies 1 | . 1 Largest Group 1 | . 1 Highest-Rated Group 10 | . 10 Highest-Rated Ally 10 | . 10 Total Orders . | . . Ally Attacks . | . . Total Damage . | . . Kills . | . . Allies Corrupted . | . . Allies Melted . | . . Intel | -11 -10 ------- Run | Scr Mat Robot Analysis Total 5 | . 5 Derelict Logs Recovered . | . . Drone Launches . | . . Drone Recoveries . | . . Exploration | -11 -10 ------------- Run | Scr Mat Turns Passed 512 | 47 465 Spaces Moved 559 | 44 515 Core 559 | 44 515 Treads . | . . Legs . | . . Wheels . | . . Hover . | . . Flight . | . . Fastest Speed 50 | 50 50 Average Speed 50 | 50 50 Slowest Speed 50 | 50 50 Overloaded Moves . | . . Propulsion Burnouts . | . . Robots Hopped . | . . Cave-ins Triggered . | . . Exploration Rate (%) 43 | 3 83 Regions Visited 1 Branch Regions . Pre-discovered Areas 1 | . 1 Known Exits Taken . | . . Unknown Exits Taken 1 | 1 . Scrap Searched . | . . Spaces Dug . | . . Terrain Destroyed . | . . Melee . | . . Projectile . | . . AOE . | . . Terrain Rammed . | . . Walls Destroyed . | . . Machines Disabled . | . . Actions | -11 -10 --------- Run | Scr Mat Total 674 | 58 616 Wait 22 | . 22 Move 558 | 43 515 Hop . | . . Pick Up 10 | 6 4 Fast Attach 7 | 2 5 Attach 1 | . 1 Detach . | . . Swap . | . . Drop 6 | 1 5 Fire 70 | 6 64 Melee . | . . Ram . | . . Kick . | . . Crush . | . . Escape Stasis . | . . Rewire . | . . Trap . | . . Miscellaneous . | . . Route ------- -11/Scrapyard -10/Materials (discovered 4 exits: [*Mat x2] / [*Min x2]) History --------- Turn | Location | Event 9 | -11/Scrapyard | Discovered new exit (range 15) 48 | -11/Scrapyard | Entered Materials 89 | -10/Materials | Discovered new exit (range 11) 117 | -10/Materials | Central database locked down 196 | -10/Materials | Discovered new exit (range 13) 251 | -10/Materials | Core integrity fell below 50% 315 | -10/Materials | Build established: Mutant 407 | -10/Materials | Discovered new exit (range 17) 468 | -10/Materials | Discovered new exit (range 18) 501 | -10/Materials | Core integrity fell below 20% 513 | -10/Materials | Destroyed by G-47 Trooper with Particle Gun Last Messages --------------- 00437_ Technician 1a reveals location of hidden door. 00448_ Technician 1a reports 0b10 security level has lowered to 1. 00450_ A-02 Transporter destroyed. 00454_ K-01 Serf cleans the Recycling Unit. 00454_ K-01 Serf collects debris. 00455_ K-01 Serf destroyed. 00457_ K-01 Serf collects debris. 00458_ K-01 Serf destroyed. 00462_ Acquired 15 matter. 00465_ Technician 1a reveals location of Blade Trap. 00468_ EXIT=FOUND 00469_ Critical hit (Burn: +37). 00470_ Dropped Sml. Laser. 00471_ Acquired Lgt. Assault Rifle. 00472_ Dropped Wheel. 00473_ Acquired Wheel. 00475_ Technician 1a reveals location of Blade Trap. 00501_ G-34 Mercenary destroyed. 00503_ Technician 1a reveals location of Blade Trap. 00505_ K-01 Serf collects debris. Map ----- +----------------------------------------------------+ | ??########### #########+##### | | ????????????# #??????# # | | ????????????# #??????# !!! # | | ????????????# #??????# !!! + | | ????????????# #??????# !! # | | ????????????# #??????# # | | ????????????# #??????# # | | ?????######## #??????######## | | ?????# # #????????###### | | ?????# "T" # #????????# | | ?????# + +????????# | | ?????# [ # #????????# """ | | ?????# [# #????????# """ | | ?????#= [ # #????????# """ | | ?????###+#### #????????# | | ???????# #??# +????????# """ | | ???????# #??# #????????# """ | | ######## #??# #????????# """ | | # # #??# #????????# | | # """" # #### #????????# | | # """" #^ ^ ^ +????????# | | # """" # #????????###### | | # # ^ ^ #????????# # | | # #^ k #????????# + | | # ]/[ %g= #????????# # | | # ]/ @# #????????# # | | # ][ ### < #????????# # | | # #?? #????????# # | | # #?? ###????????# # | | # #?? #??????????# # | | # #?? #??????????# # | | ########?? ??????????#####? | | ??????????## ??????????????? | | ????????????! ?????????????? | | ????????????! !????????????? | | ????????????#!!!!##???????????? | | ?????????????#####????????????? | | ??????????????????????????????? | | | | | | | | | | | | | | | | | | | | | | | | | +----------------------------------------------------+ Best States ------------- Heat Dissipation 25 Energy Generation 5 Energy Capacity 100 Matter Stores 300 Matter Capacity 300 Sight Range 18 Terrain Scan Density 10 Evasion (%) 50 Offensive Hacking 10 Item Schematics ----------------- None Robot Schematics ------------------ None Fabricated ------------ Nothing Alien Tech Used ----------------- None Achievements -------------- None Challenges ------------ None Game ------ Seed MomentumMagneticSpear Manual? 0 Play Time 00:07:09 Cumulative 661.1 hours Start 2022.07.04 @ 16:31:01 End 2022.07.04 @ 16:37:30 Sessions 1 Manual Loads 0 Difficulty Rogue Special Mode None Game No. 546 Rogue 546 Adventurer 0 Explorer 0 Win Type - Total 8 Types 7/0/0/1/0/0/0/0/0 Lore% 75 Gallery% 86 Achievement% 69 Wizard Run 0 Options --------- ASCII 0 Keyboard 1 Movement Numpad Keybinds 0 Fullscreen 1 Font 12/Terminus Map View 83x54 Tactical HUD 1 Map Filters NONE Filters NONE Steam 1 RUN: fabb16a6-3638-4e88-aa23-d255de30de19